fUST/lending_fUST_20250210
["ID","MTS","AMOUNT","RATE_DAILY","PERIOD"]
[352555290,1739164254209,-216.067364,0.00013424,2]
[352555291,1739164254218,-151.0,0.00013424,2]
[352555292,1739164254228,-556.3,0.00013424,2]
[352555293,1739164254239,-151.0,0.00013424,2]
[352555294,1739164254249,-151.0,0.00013424,2]
[352555295,1739164254267,-793.24,0.00013424,2]
[352555296,1739164254278,-151.0,0.00013424,2]
[352555297,1739164254287,-1623.6,0.00013424,2]
[352555298,1739164254298,-1532.78,0.00013424,2]
[352555299,1739164254310,-500.0,0.00013424,2]
[352555300,1739164254320,-199.7575574,0.00013425,2]
[352555301,1739164254332,-200.0,0.000135,2]
[352555302,1739164254343,-200.0,0.000135,2]
[352555303,1739164254354,-200.0,0.000135,2]
[352555304,1739164254363,-200.0,0.000135,3]
[352555305,1739164254373,-200.0,0.000135,3]
[352555306,1739164254383,-200.0,0.000135,2]
[352555307,1739164254392,-200.0,0.000135,2]
[352555308,1739164254403,-200.0,0.000135,2]
[352555309,1739164254412,-200.0,0.000135,2]
[352555310,1739164254421,-200.0,0.000135,2]
[352555311,1739164254430,-1255.52239241,0.00013522,2]
[352555312,1739164254440,-2197.1482916,0.00013532,2]
[352555313,1739164254449,-182.47963605,0.0001356,2]
[352555314,1739164254459,-500.2,0.0001356,2]
[352555315,1739164254469,-516.78,0.00013561,2]
[352555316,1739164254478,-500.0,0.00013561,2]
[352555317,1739164254487,-627.73,0.00013561,2]
[352555318,1739164254498,-206.263594,0.00013561,2]
[352555319,1739164254508,-904.46,0.00013561,2]
[352555320,1739164254519,-151.0,0.00013561,2]
[352555321,1739164254528,-249.234601,0.00013561,2]
[352555322,1739164254537,-249.234601,0.00013561,2]
[352555323,1739164254547,-323.316361,0.00013561,2]
[352555324,1739164254556,-323.316361,0.00013561,2]
[352555325,1739164254565,-151.0,0.00013561,2]
[352555326,1739164254575,-151.0,0.00013561,2]
[352555327,1739164254586,-1584.89286267,0.00013561,2]
[352555328,1739164254599,-2733.97713733,0.00013561,2]
[352555329,1739164254609,-3059.6,0.00013561,2]
[352555330,1739164254619,-1741.17772647,0.00013561,2]
[352555331,1739165130134,-1229.4279276,9.875e-05,2]
[352555332,1739165145087,-1605.01600861,9.875e-05,2]
[352555335,1739165226088,-2196.38219083,9.677e-05,2]
[352555336,1739165235079,-1716.9146474,9.677e-05,2]
[352555337,1739165236120,-1086.70316177,9.677e-05,2]
[352555338,1739165236141,-2397.18217617,9.775e-05,2]
[352555339,1739165236163,-300.0,9.874e-05,2]
[352555340,1739165236184,-12798.91936339,9.875e-05,2]
[352555341,1739165236206,-2074.07888191,0.00010241,2]
[352555342,1739165253134,-374.0927677,0.00010139,2]
[352555348,1739165349092,-395.5072323,0.00010139,2]
[352555349,1739165349115,-300.0,0.0001024,2]
[352555350,1739165349137,-22421.95279553,0.00010241,2]
[352555351,1739165354135,-403.96832256,0.00010241,2]
[352555352,1739165354158,-347.98449719,0.00010685,2]
[352555398,1739165432956,-52.01550281,0.00010685,2]
[352555400,1739165432967,-300.0,0.00010957,2]
[352555401,1739165432978,-194.56125134,0.00010958,2]
[352555402,1739165432989,-501.18998335,0.00010958,2]
[352555403,1739165432999,-508.29520958,0.00010958,2]
[352555404,1739165433009,-500.0,0.00010958,2]
[352555405,1739165433019,-500.0,0.00010958,2]
[352555406,1739165433030,-1.15832544,0.00010958,2]
[352555423,1739165438561,-504.61269611,0.00010958,2]
[352555424,1739165438571,-509.06823452,0.00010958,2]
[352555425,1739165438580,-505.12821359,0.00010958,2]
[352555426,1739165438589,-500.0,0.00010958,2]
[352555427,1739165438599,-500.0,0.00010958,2]
[352555428,1739165438608,-500.0,0.00010958,2]
[352555429,1739165438617,-500.0,0.00010958,2]
[352555430,1739165438626,-500.0,0.00010958,2]
[352555431,1739165438640,-500.0,0.00010958,2]
[352555432,1739165438649,-502.71034168,0.00010958,2]
[352555433,1739165438658,-500.0,0.00010958,2]
[352555434,1739165438667,-500.0,0.00010958,2]
[352555435,1739165438677,-500.0,0.00010958,2]
[352555436,1739165438686,-465.4695409,0.00010958,2]
[352555437,1739165438695,-500.0,0.00010958,2]
[352555438,1739165438705,-500.0,0.00010958,2]
[352555439,1739165438714,-500.0,0.00010958,2]
[352555440,1739165438725,-596.2354889,0.00010958,2]
[352555441,1739165438734,-500.0,0.00010958,2]
[352555442,1739165438743,-581.49025921,0.00010958,2]
[352555443,1739165438751,-503.11827468,0.00010958,2]
[352555444,1739165438760,-500.0,0.00010958,2]
[352555445,1739165438769,-500.0,0.00010958,2]
[352555446,1739165438779,-500.0,0.00010958,2]
[352555447,1739165438788,-500.0,0.00010958,2]
[352555448,1739165438797,-500.0,0.00010958,2]
[352555449,1739165438806,-500.0,0.00010958,2]
[352555450,1739165438815,-500.0,0.00010958,2]
[352555451,1739165438824,-500.0,0.00010958,2]
[352555452,1739165438833,-500.0,0.00010958,2]
[352555453,1739165438842,-500.0,0.00010958,2]
[352555454,1739165438851,-500.0,0.00010958,2]
[352555455,1739165438860,-501.90547418,0.00010958,2]
[352555456,1739165438869,-500.0,0.00010958,2]
[352555457,1739165438878,-500.0,0.00010958,2]
[352555458,1739165438887,-500.0,0.00010958,2]
[352555459,1739165438897,-500.0,0.00010958,2]
[352555460,1739165438906,-500.0,0.00010958,2]
[352555461,1739165438915,-161.82735539,0.00010958,2]
[352555462,1739165438924,-500.0,0.00010958,2]
[352555463,1739165438933,-500.0,0.00010958,2]
[352555464,1739165438942,-500.0,0.00010958,2]
[352555465,1739165438951,-500.0,0.00010958,2]
[352555466,1739165438960,-536.34081141,0.00010958,2]
[352555467,1739165438969,-500.0,0.00010958,2]
[352555468,1739165438979,-500.0,0.00010958,2]
[352555469,1739165438989,-500.0,0.00010958,2]
[352555470,1739165438998,-501.82769055,0.00010958,2]
[352555471,1739165439007,-500.0,0.00010958,2]
[352555472,1739165439016,-500.0,0.00010958,2]
[352555473,1739165439025,-247.49734324,0.00010958,2]
[352555474,1739165439035,-504.59988527,0.00010958,2]
[352555475,1739165439044,-500.0,0.00010958,2]
[352555476,1739165439053,-500.0,0.00010958,2]
[352555477,1739165439063,-500.0,0.00010958,2]
[352555478,1739165439072,-481.05243776,0.00010958,2]
[352555479,1739165439081,-500.0,0.00010958,2]
[352555480,1739165439090,-500.0,0.00010958,2]
[352555481,1739165439099,-500.0,0.00010958,2]
[352555482,1739165439108,-500.0,0.00010958,2]
[352555483,1739165439118,-500.0,0.00010958,2]
[352555484,1739165439127,-500.0,0.00010958,2]
[352555485,1739165439137,-500.0,0.00010958,2]
[352555486,1739165439146,-300.57009657,0.00010958,2]
[352555487,1739165439155,-500.0,0.00010958,2]
[352555488,1739165439164,-500.0,0.00010958,2]
[352555489,1739165439173,-500.0,0.00010958,2]
[352555490,1739165439182,-567.03,0.00010958,2]
[352555491,1739165439192,-500.0,0.00010958,2]
[352555492,1739165439201,-500.0,0.00010958,2]
[352555493,1739165439210,-500.0,0.00010958,2]
[352555494,1739165439219,-500.0,0.00010958,2]
[352555495,1739165439228,-500.0,0.00010958,2]
[352555496,1739165439237,-500.0,0.00010958,2]
[352555497,1739165439246,-500.0,0.00010958,2]
[352555498,1739165439255,-500.0,0.00010958,2]
[352555499,1739165439264,-500.0,0.00010958,2]
[352555500,1739165439273,-500.0,0.00010958,2]
[352555501,1739165439282,-500.0,0.00010958,2]
[352555502,1739165439291,-500.0,0.00010958,2]
[352555503,1739165439300,-500.0,0.00010958,2]
[352555504,1739165439309,-500.0,0.00010958,2]
[352555505,1739165439318,-500.0,0.00010958,2]
[352555506,1739165439327,-187.65074797,0.00010958,2]
[352555507,1739165439349,-312.34925203,0.00010958,2]
[352555508,1739165439358,-500.0,0.00010958,2]
[352555509,1739165439367,-501.51125277,0.00010958,2]
[352555510,1739165439376,-500.0,0.00010958,2]
[352555511,1739165439386,-524.2737174,0.00010958,2]
[352555512,1739165439395,-500.0,0.00010958,2]
[352555513,1739165439404,-500.0,0.00010958,2]
[352555514,1739165439413,-500.0,0.00010958,2]
[352555515,1739165439423,-500.0,0.00010958,2]
[352555516,1739165439432,-500.0,0.00010958,2]
[352555517,1739165439441,-500.0,0.00010958,2]
[352555518,1739165439450,-500.0,0.00010958,2]
[352555519,1739165439459,-500.0,0.00010958,2]
[352555520,1739165439468,-253.57642767,0.00010958,2]
[352555521,1739165439478,-500.0,0.00010958,2]
[352555522,1739165439487,-500.0,0.00010958,2]
[352555523,1739165439496,-622.75,0.00010958,2]
[352555524,1739165439505,-500.0,0.00010958,2]
[352555525,1739165439514,-500.0,0.00010958,2]
[352555526,1739165439523,-228.57681542,0.00010958,2]
[352555527,1739165439532,-500.0,0.00010958,2]
[352555528,1739165439542,-500.0,0.00010958,2]
[352555529,1739165439551,-500.0,0.00010958,2]
[352555530,1739165439559,-500.0,0.00010958,2]
[352555531,1739165439568,-501.71564661,0.00010958,2]
[352555532,1739165439578,-500.0,0.00010958,2]
[352555533,1739165439587,-669.05,0.00010958,2]
[352555534,1739165439596,-500.0,0.00010958,2]
[352555535,1739165439606,-500.0,0.00010958,2]
[352555536,1739165439615,-550.29863966,0.00010958,2]
[352555537,1739165439624,-503.81209366,0.00010958,2]
[352555538,1739165439633,-500.0,0.00010958,2]
[352555539,1739165439644,-500.0,0.00010958,2]
[352555540,1739165439655,-500.0,0.00010958,2]
[352555541,1739165439664,-500.0,0.00010958,2]
[352555542,1739165439674,-500.0,0.00010958,2]
[352555543,1739165439683,-500.0,0.00010958,2]
[352555544,1739165439692,-500.0,0.00010958,2]
[352555545,1739165439701,-500.0,0.00010958,2]
[352555546,1739165439710,-500.0,0.00010958,2]
[352555547,1739165439721,-502.6365356,0.00010958,2]
[352555548,1739165439732,-500.0,0.00010958,2]
[352555549,1739165439741,-500.0,0.00010958,2]
[352555550,1739165439750,-500.0,0.00010958,2]
[352555551,1739165439759,-500.0,0.00010958,2]
[352555552,1739165439768,-182.5604238,0.00010958,2]
[352555553,1739165439778,-1609.86,0.00010958,2]
[352555554,1739165439787,-316.97139384,0.00010958,2]
[352555555,1739165439796,-347.45778503,0.00010958,2]
[352555556,1739165439805,-501.46499881,0.00010958,2]
[352555557,1739165439815,-500.0,0.00010958,2]
[352555558,1739165439825,-1512.52,0.00010958,2]
[352555559,1739165439835,-500.0,0.00010958,2]
[352555560,1739165439844,-1362.82,0.00010958,2]
[352555561,1739165439853,-500.0,0.00010958,2]
[352555562,1739165439863,-500.0,0.00010958,2]
[352555563,1739165439872,-5665.32,0.00010958,2]
[352555564,1739165439881,-500.0,0.00010958,2]
[352555565,1739165439892,-500.0,0.00010958,2]
[352555566,1739165439901,-11677.26,0.00010958,2]
[352555567,1739165439911,-819.43,0.00010958,2]
[352555568,1739165439920,-500.0,0.00010958,2]
[352555569,1739165439930,-503.29816256,0.00010958,2]
[352555570,1739165439939,-500.0,0.00010958,2]
[352555571,1739165439949,-512.45,0.00010958,2]
[352555572,1739165439958,-500.0,0.00010958,2]
[352555573,1739165439967,-500.0,0.00010958,2]
[352555574,1739165439977,-500.0,0.00010958,2]
[352555575,1739165439986,-500.0,0.00010958,2]
[352555576,1739165439995,-500.0,0.00010958,2]
[352555577,1739165440005,-500.0,0.00010958,2]
[352555578,1739165440014,-500.0,0.00010958,2]
[352555579,1739165440023,-501.68703977,0.00010958,2]
[352555580,1739165440033,-500.0,0.00010958,2]
[352555581,1739165440043,-500.0,0.00010958,2]
[352555582,1739165440052,-500.0,0.00010958,2]
[352555583,1739165440062,-500.0,0.00010958,2]
[352555584,1739165440071,-500.0,0.00010958,2]
[352555585,1739165440081,-501.78358524,0.00010958,2]
[352555586,1739165440090,-507.20464253,0.00010958,2]
[352555587,1739165440099,-673.93,0.00010958,2]
[352555588,1739165440109,-502.16871401,0.00010958,2]
[352555589,1739165440119,-500.0,0.00010958,2]
[352555590,1739165440128,-759.29,0.00010958,2]
[352555591,1739165440139,-500.0,0.00010958,2]
[352555593,1739165440149,-500.0,0.00010958,2]
[352555595,1739165440158,-500.0,0.00010958,2]
[352555596,1739165440168,-500.0,0.00010958,2]
[352555597,1739165440177,-500.0,0.00010958,2]
[352555598,1739165440187,-500.0,0.00010958,2]
[352555599,1739165440196,-500.0,0.00010958,2]
[352555600,1739165440206,-846.63,0.00010958,2]
[352555601,1739165440215,-500.0,0.00010958,2]
[352555602,1739165440224,-501.33067195,0.00010958,2]
[352555603,1739165440234,-500.0,0.00010958,2]
[352555604,1739165440244,-500.0,0.00010958,2]
[352555605,1739165440254,-650.09,0.00010958,2]
[352555606,1739165440264,-500.0,0.00010958,2]
[352555607,1739165440273,-500.0,0.00010958,2]
[352555608,1739165440282,-500.0,0.00010958,2]
[352555609,1739165440292,-500.0,0.00010958,2]
[352555610,1739165440421,-500.0,0.00010958,2]
[352555611,1739165440430,-500.0,0.00010958,2]
[352555612,1739165440439,-500.0,0.00010958,2]
[352555613,1739165440448,-500.0,0.00010958,2]
[352555614,1739165440458,-500.0,0.00010958,2]
[352555615,1739165440467,-500.0,0.00010958,2]
[352555616,1739165440476,-1097.65,0.00010958,2]
[352555617,1739165440485,-1101.87,0.00010958,2]
[352555618,1739165440495,-500.0,0.00010958,2]
[352555619,1739165440504,-623.92340764,0.00010958,2]
[352555620,1739165440514,-561.61,0.00010958,2]
[352555621,1739165440523,-505.75,0.00010958,2]
[352555622,1739165440533,-500.0,0.00010958,2]
[352555623,1739165440542,-500.0,0.00010958,2]
[352555624,1739165440552,-500.0,0.00010958,2]
[352555625,1739165440561,-500.0,0.00010958,2]
[352555626,1739165440570,-500.0,0.00010958,2]
[352555627,1739165440580,-500.0,0.00010958,2]
[352555628,1739165440590,-500.0,0.00010958,2]
[352555629,1739165440600,-500.0,0.00010958,2]
[352555630,1739165440609,-500.0,0.00010958,2]
[352555631,1739165440619,-500.0,0.00010958,2]
[352555632,1739165440628,-528.83,0.00010958,2]
[352555633,1739165440638,-500.0,0.00010958,2]
[352555634,1739165440648,-500.0,0.00010958,2]
[352555635,1739165440657,-500.0,0.00010958,2]
[352555636,1739165440667,-500.0,0.00010958,2]
[352555637,1739165440677,-500.0,0.00010958,2]
[352555638,1739165440687,-1367.88,0.00010958,2]
[352555639,1739165440696,-500.0,0.00010958,2]
[352555640,1739165440708,-500.0,0.00010958,2]
[352555641,1739165440718,-500.0,0.00010958,2]
[352555642,1739165440727,-500.0,0.00010958,2]
[352555643,1739165440737,-500.0,0.00010958,2]
[352555644,1739165440746,-500.0,0.00010958,2]
[352555645,1739165440755,-500.0,0.00010958,2]
[352555646,1739165440765,-500.0,0.00010958,2]
[352555647,1739165440774,-500.0,0.00010958,2]
[352555648,1739165440784,-4169.79,0.00010958,2]
[352555649,1739165440793,-1374.75,0.00010958,2]
[352555650,1739165440803,-502.96705758,0.00010958,2]
[352555651,1739165440812,-500.0,0.00010958,2]
[352555652,1739165440822,-500.0,0.00010958,2]
[352555653,1739165440831,-718.02,0.00010958,2]
[352555654,1739165440840,-500.0,0.00010958,2]
[352555655,1739165440850,-500.0,0.00010958,2]
[352555656,1739165440859,-500.0,0.00010958,2]
[352555657,1739165440868,-500.0,0.00010958,2]
[352555658,1739165440877,-500.0,0.00010958,2]
[352555659,1739165440888,-500.0,0.00010958,2]
[352555660,1739165440898,-4085.98,0.00010958,2]
[352555661,1739165440908,-502.78085355,0.00010958,2]
[352555662,1739165440919,-2060.30452872,0.00010991,2]
[352555663,1739165440929,-196.41597954,0.00010995,2]
[352555664,1739165440939,-596.13797037,0.00011095,2]
[352555665,1739165440948,-500.0,0.00011095,2]
[352555666,1739165440958,-500.0,0.00011095,2]
[352555667,1739165440967,-500.0,0.00011095,2]
[352555668,1739165440977,-500.0,0.00011095,2]
[352555669,1739165440986,-500.0,0.00011095,2]
[352555670,1739165440996,-500.0,0.00011095,2]
[352555671,1739165441005,-500.0,0.00011095,2]
[352555672,1739165441014,-500.0,0.00011095,2]
[352555673,1739165441024,-500.0,0.00011095,2]
[352555674,1739165441033,-500.0,0.00011095,2]
[352555675,1739165441043,-500.0,0.00011095,2]
[352555676,1739165441052,-500.0,0.00011095,2]
[352555677,1739165441061,-500.0,0.00011095,2]
[352555678,1739165441070,-500.0,0.00011095,2]
[352555679,1739165441079,-500.0,0.00011095,2]
[352555680,1739165441089,-500.0,0.00011095,2]
[352555681,1739165441099,-500.0,0.00011095,2]
[352555682,1739165441108,-500.0,0.00011095,2]
[352555683,1739165441118,-500.0,0.00011095,2]
[352555684,1739165441128,-500.0,0.00011095,2]
[352555685,1739165441138,-500.0,0.00011095,2]
[352555686,1739165441147,-500.0,0.00011095,2]
[352555687,1739165441156,-500.0,0.00011095,2]
[352555688,1739165441166,-500.0,0.00011095,2]
[352555689,1739165441175,-500.0,0.00011095,2]
[352555690,1739165441184,-500.0,0.00011095,2]
[352555691,1739165441194,-500.0,0.00011095,2]
[352555692,1739165441203,-500.0,0.00011095,2]
[352555693,1739165441213,-500.0,0.00011095,2]
[352555694,1739165441222,-500.0,0.00011095,2]
[352555695,1739165441231,-500.0,0.00011095,2]
[352555696,1739165441242,-500.0,0.00011095,2]
[352555697,1739165441251,-500.0,0.00011095,2]
[352555698,1739165441261,-500.0,0.00011095,2]
[352555699,1739165441270,-500.0,0.00011095,2]
[352555700,1739165441279,-500.0,0.00011095,2]
[352555701,1739165441289,-500.0,0.00011095,2]
[352555702,1739165441298,-500.0,0.00011095,2]
[352555703,1739165441307,-552.94213255,0.00011095,2]
[352555704,1739165441317,-669.05,0.00011095,2]
[352555705,1739165441327,-503.27434851,0.00011095,2]
[352555706,1739165441336,-500.0,0.00011095,2]
[352555707,1739165441345,-500.0,0.00011095,2]
[352555708,1739165441354,-500.0,0.00011095,2]
[352555709,1739165441364,-500.0,0.00011095,2]
[352555710,1739165441374,-271.62092571,0.00011095,2]
[352555711,1739165441383,-500.0,0.00011095,2]
[352555712,1739165441393,-503.4192844,0.00011095,2]
[352555713,1739165441402,-500.0,0.00011095,2]
[352555714,1739165441413,-500.0,0.00011095,2]
[352555715,1739165441423,-1609.86,0.00011095,2]
[352555716,1739165441433,-1512.52,0.00011095,2]
[352555717,1739165441443,-500.0,0.00011095,2]
[352555718,1739165441453,-1362.82,0.00011095,2]
[352555719,1739165441462,-5665.32,0.00011095,2]
[352555720,1739165441472,-500.0,0.00011095,2]
[352555721,1739165441481,-11677.26,0.00011095,2]
[352555722,1739165441490,-819.43,0.00011095,2]
[352555723,1739165441500,-512.45,0.00011095,2]
[352555724,1739165441509,-500.0,0.00011095,2]
[352555725,1739165441519,-500.0,0.00011095,2]
[352555726,1739165441529,-500.0,0.00011095,2]
[352555727,1739165441538,-500.0,0.00011095,2]
[352555728,1739165441548,-500.0,0.00011095,2]
[352555729,1739165441558,-500.0,0.00011095,2]
[352555730,1739165441567,-500.0,0.00011095,2]
[352555731,1739165441576,-673.93,0.00011095,2]
[352555732,1739165441586,-500.0,0.00011095,2]
[352555733,1739165441595,-759.29,0.00011095,2]
[352555734,1739165441605,-500.0,0.00011095,2]
[352555735,1739165441615,-500.0,0.00011095,2]
[352555736,1739165441624,-846.63,0.00011095,2]
[352555737,1739165441634,-650.09,0.00011095,2]
[352555738,1739165441644,-500.0,0.00011095,2]
[352555739,1739165441654,-500.0,0.00011095,2]
[352555740,1739165441663,-500.0,0.00011095,2]
[352555741,1739165441673,-500.0,0.00011095,2]
[352555742,1739165441683,-1097.65,0.00011095,2]
[352555744,1739165441693,-1101.87,0.00011095,2]
[352555746,1739165441703,-500.0,0.00011095,2]
[352555748,1739165441712,-561.61,0.00011095,2]
[352555750,1739165441722,-505.75,0.00011095,2]
[352555751,1739165441731,-500.0,0.00011095,2]
[352555752,1739165441740,-500.0,0.00011095,2]
[352555754,1739165441749,-500.0,0.00011095,2]
[352555756,1739165441758,-500.0,0.00011095,2]
[352555757,1739165441768,-500.0,0.00011095,2]
[352555758,1739165441778,-500.0,0.00011095,2]
[352555759,1739165441787,-528.83,0.00011095,2]
[352555760,1739165441796,-500.0,0.00011095,2]
[352555761,1739165441806,-500.0,0.00011095,2]
[352555762,1739165441815,-500.0,0.00011095,2]
[352555763,1739165441825,-1367.88,0.00011095,2]
[352555764,1739165441835,-500.0,0.00011095,2]
[352555765,1739165441844,-500.0,0.00011095,2]
[352555766,1739165441854,-500.0,0.00011095,2]
[352555767,1739165441863,-542.0610012,0.00011095,2]
[352555768,1739165441873,-500.0,0.00011095,2]
[352555769,1739165441886,-177.66114352,0.00011095,2]
[352555770,1739165441898,-500.0,0.00011095,2]
[352555771,1739165441910,-388.10652991,0.00011095,2]
[352555772,1739165441922,-4169.79,0.00011095,2]
[352555773,1739165441934,-1374.75,0.00011095,2]
[352555774,1739165441946,-500.0,0.00011095,2]
[352555775,1739165441956,-500.0,0.00011095,2]
[352555776,1739165441967,-718.02,0.00011095,2]
[352555777,1739165441978,-500.0,0.00011095,2]
[352555778,1739165441988,-500.0,0.00011095,2]
[352555779,1739165441999,-500.0,0.00011095,2]
[352555780,1739165442009,-500.0,0.00011095,2]
[352555781,1739165442020,-500.0,0.00011095,2]
[352555782,1739165442032,-4085.98,0.00011095,2]
[352555783,1739165442044,-500.0,0.00011232,2]
[352555784,1739165442055,-500.0,0.00011232,2]
[352555785,1739165442066,-500.0,0.00011232,2]
[352555786,1739165442076,-500.0,0.00011232,2]
[352555787,1739165442088,-500.0,0.00011232,2]
[352555788,1739165442099,-500.0,0.00011232,2]
[352555789,1739165442110,-500.0,0.00011232,2]
[352555790,1739165442121,-500.0,0.00011232,2]
[352555791,1739165442132,-500.0,0.00011232,2]
[352555792,1739165442143,-500.0,0.00011232,2]
[352555793,1739165442155,-500.0,0.00011232,2]
[352555794,1739165442166,-500.0,0.00011232,2]
[352555795,1739165442176,-500.0,0.00011232,2]
[352555796,1739165442186,-500.0,0.00011232,2]
[352555797,1739165442199,-500.0,0.00011232,2]
[352555798,1739165442210,-500.0,0.00011232,2]
[352555799,1739165442222,-587.46556329,0.00011232,2]
[352555800,1739165442233,-500.0,0.00011232,2]
[352555801,1739165442244,-500.0,0.00011232,2]
[352555802,1739165442255,-500.0,0.00011232,2]
[352555803,1739165442264,-669.05,0.00011232,2]
[352555804,1739165442274,-500.0,0.00011232,2]
[352555805,1739165442285,-500.0,0.00011232,2]
[352555806,1739165442295,-500.0,0.00011232,2]
[352555807,1739165442305,-500.0,0.00011232,2]
[352555808,1739165442316,-500.0,0.00011232,2]
[352555809,1739165442327,-1609.86,0.00011232,2]
[352555810,1739165442338,-1512.52,0.00011232,2]
[352555811,1739165442349,-500.0,0.00011232,2]
[352555812,1739165442360,-1362.82,0.00011232,2]
[352555813,1739165442371,-5665.32,0.00011232,2]
[352555814,1739165442382,-500.0,0.00011232,2]
[352555815,1739165442394,-11677.26,0.00011232,2]
[352555816,1739165442405,-819.43,0.00011232,2]
[352555817,1739165442417,-512.45,0.00011232,2]
[352555818,1739165442428,-500.0,0.00011232,2]
[352555819,1739165442440,-500.0,0.00011232,2]
[352555820,1739165442452,-500.0,0.00011232,2]
[352555821,1739165442462,-500.0,0.00011232,2]
[352555822,1739165442472,-500.0,0.00011232,2]
[352555823,1739165442482,-500.0,0.00011232,2]
[352555824,1739165442492,-500.0,0.00011232,2]
[352555825,1739165442503,-673.93,0.00011232,2]
[352555826,1739165442513,-759.29,0.00011232,2]
[352555827,1739165442524,-500.0,0.00011232,2]
[352555828,1739165442535,-500.0,0.00011232,2]
[352555829,1739165442549,-846.63,0.00011232,2]
[352555830,1739165442561,-650.09,0.00011232,2]
[352555831,1739165442573,-500.0,0.00011232,2]
[352555832,1739165442584,-500.0,0.00011232,2]
[352555833,1739165442593,-500.0,0.00011232,2]
[352555834,1739165442604,-1097.65,0.00011232,2]
[352555835,1739165442614,-1101.87,0.00011232,2]
[352555836,1739165442625,-500.0,0.00011232,2]
[352555837,1739165442635,-561.61,0.00011232,2]
[352555838,1739165442648,-505.75,0.00011232,2]
[352555839,1739165442661,-500.0,0.00011232,2]
[352555840,1739165442672,-500.0,0.00011232,2]
[352555841,1739165442683,-500.0,0.00011232,2]
[352555842,1739165442693,-500.0,0.00011232,2]
[352555843,1739165442704,-500.0,0.00011232,2]
[352555844,1739165442714,-500.0,0.00011232,2]
[352555845,1739165442725,-528.83,0.00011232,2]
[352555846,1739165442734,-500.0,0.00011232,2]
[352555847,1739165442744,-500.0,0.00011232,2]
[352555848,1739165442755,-1367.88,0.00011232,2]
[352555849,1739165442765,-500.0,0.00011232,2]
[352555850,1739165442775,-500.0,0.00011232,2]
[352555851,1739165442786,-500.0,0.00011232,2]
[352555852,1739165442797,-500.0,0.00011232,2]
[352555853,1739165442807,-500.0,0.00011232,2]
[352555854,1739165442818,-4169.79,0.00011232,2]
[352555855,1739165442829,-1374.75,0.00011232,2]
[352555856,1739165442839,-500.0,0.00011232,2]
[352555857,1739165442849,-718.02,0.00011232,2]
[352555858,1739165442859,-500.0,0.00011232,2]
[352555859,1739165442869,-500.0,0.00011232,2]
[352555860,1739165442879,-500.0,0.00011232,2]
[352555861,1739165442891,-500.0,0.00011232,2]
[352555862,1739165442901,-500.0,0.00011232,2]
[352555863,1739165442912,-4085.98,0.00011232,2]
[352555864,1739165442922,-8620.01552516,0.00011269,2]
[352555865,1739165442932,-158.50998487,0.00011369,2]
[352555866,1739165442943,-500.0,0.00011369,2]